Cogmind - Beta 11.1 *** ADVENTURER MODE // 2022.12.15 @ 19:43:51 Player: Olexender Result: Destroyed by G-47 Trooper with Particle Gun Performance ------------- Evolutions (3) 1500 Regions Visited (10) 2000 Robots Destroyed (183) 915 Value Destroyed (6592) 6592 Prototype IDs (29) 580 Alien Tech Used (0) 0 Bonus (1389) 1389 TOTAL SCORE: 12976 Bonus ------- High Alert Combat Kills 354 Follower Combat Kills 35 Entered Garrisons 200 Used RIF Installer 500 Aligned with FarCom 300 Cogmind --------- Core Integrity 0/700 Matter 14/300 Energy 100/100 System Corruption 6% Temperature Cool (9) Movement Core (1500) Ox29 Location -7/Factory Parts ------- > --- POWER (2) -------- (None) > --- PROPULSION (4) --- (None) > --- UTILITY (5) ------ Huge Storage Unit Advanced Targeting Computer > --- WEAPON (2) ------- Mini Assault Cannon Mini Assault Cannon > --- INVENTORY (25) --- Advanced Heat Sink High-capacity Battery (250) Medium Matter Pod (0) Advanced Weight Redist. System Improved Sensor Array Experimental Sensor Array Improved Signal Interpreter Transmission Jammer Advanced ECM Suite Cloak of Protection Power Shielding Improved Power Shielding Reactive Plating Shock Absorption System EM Disruption Field Hacking Suite System Shield Relay Coupler [NC] (35) Relay Coupler [Brawler] (29) Relay Coupler [Sentry] (27) Flak Cannon Mini Assault Cannon Missile Launcher Peak State ------------ > --- POWER ------------ Light Nuclear Core Light Nuclear Core > --- PROPULSION ------- Improved Titanium Leg Improved Titanium Leg Improved Titanium Leg > --- UTILITY ---------- Advanced Heat Sink Huge Storage Unit Experimental Sensor Array System Shield > --- WEAPON ----------- Plasma Cannon Gauss Cannon > --- INVENTORY -------- Improved Titanium Leg High-capacity Battery Advanced Weight Redist. System Transmission Jammer Cloak of Protection Core Shielding Power Shielding Utility Shielding Heavy Armor Plating Reactive Plating Shock Absorption System Hardlight Generator Hacking Suite System Shield Relay Coupler [NC] Relay Coupler [Brawler] Relay Coupler [Sentry] Relay Coupler [Demolisher] Relay Coupler [Specialist] Minigun Minigun Light Cannon Light Cannon Mining Laser [Rating: 51] Favorites ----------- Power Light Nuclear Core Engine Ion Engine Power Core Light Nuclear Core Propulsion Improved Titanium Leg Treads Armored Treads Leg Improved Titanium Leg Utility Huge Storage Unit Device Advanced Weight Redist. System Storage Huge Storage Unit Processor Advanced Targeting Computer Hackware System Shield Protection Utility Shielding Weapon Light Cannon Energy Gun Medium Laser Energy Cannon Plasma Cannon Ballistic Gun Minigun Ballistic Cannon Light Cannon Launcher Rocket Launcher Special Weapon Mining Laser Build | -11 -10 -10 -9 -9 -9 -8 -8 -8 -8 -7 ------- Run | Scr Mat Min Mat Min Exi Min Mat Gar Mat Fac Slots Evolved 6 | . . . 2 . . . 2 . . 2 Power 1 | . . . . . . . 1 . . . Propulsion 2 | . . . 1 . . . . . . 1 Utility 3 | . . . 1 . . . 1 . . 1 Weapon . | . . . . . . . . . . . Parts Attached 131 | 6 12 2 6 3 4 5 11 14 34 34 Power 22 | 1 1 1 . 1 . 1 2 3 5 7 Engine 8 | 1 1 . . 1 . 1 1 1 . 2 Core 14 | . . 1 . . . . 1 2 5 5 Reactor . | . . . . . . . . . . . Propulsion 31 | 2 1 1 3 . 1 1 1 5 5 11 Treads 15 | 2 1 1 3 . 1 1 1 5 . . Leg 16 | . . . . . . . . . 5 11 Wheel . | . . . . . . . . . . . Hover . | . . . . . . . . . . . Flight . | . . . . . . . . . . . Utility 35 | 1 3 . 3 . 3 . 2 4 8 11 Device 17 | . . . 1 . 3 . . 3 5 5 Storage 4 | 1 2 . 1 . . . . . . . Processor 2 | . . . . . . . . . . 2 Hackware 2 | . . . 1 . . . . . . 1 Protection 10 | . 1 . . . . . 2 1 3 3 Artifact . | . . . . . . . . . . . Weapon 43 | 2 7 . . 2 . 3 6 2 16 5 Energy Gun 8 | 1 3 . . . . 1 1 . 2 . Energy Cannon 2 | . . . . . . . 1 1 . . Ballistic Gun 5 | 1 . . . . . 1 1 . 2 . Ballistic Cannon 19 | . 2 . . 1 . . 2 1 8 5 Launcher 3 | . . . . 1 . 1 1 . . . Special Weapon 6 | . 2 . . . . . . . 4 . Impact Weapon . | . . . . . . . . . . . Slashing Weapon . | . . . . . . . . . . . Piercing Weapon . | . . . . . . . . . . . Special Melee Weapon . | . . . . . . . . . . . Unidentified Prototypes 6 | . . . 1 . . . 1 . 3 1 Parts Lost 49 | . 2 1 . 3 . 1 2 8 6 26 Power 12 | . . . . 1 . . . 3 3 5 Propulsion 20 | . 1 1 . . . 1 1 3 . 13 Utility 8 | . . . . . . . . 1 . 7 Weapon 9 | . 1 . . 2 . . 1 1 3 1 Highest Loss Streak 7 | . 1 1 . 2 . 1 2 5 2 7 To Critical Strikes 1 | . . . . . . 1 . . . . Average Slot Usage (%) 93 | . 93 95 97 86 100 95 89 98 97 88 Engine 5 | . 14 5 . 4 11 11 9 8 . 2 Core 7 | . . 8 11 1 . . 1 9 16 7 Treads 16 | . 25 24 31 33 33 28 26 26 5 . Leg 10 | . . . . . . . . . 21 25 Device 7 | . . . 1 . 7 11 2 14 13 8 Storage 9 | . 14 14 11 11 11 11 9 9 9 7 Processor 1 | . . . . . . . . . . 7 Hackware 7 | . . . 9 11 11 11 9 9 9 6 Protection 6 | . 12 14 11 11 3 . 13 3 4 5 Energy Gun 3 | . 13 14 11 1 . 2 3 . . . Energy Cannon 1 | . . . . . . . 1 7 3 . Ballistic Gun 1 | . 5 . . . . . 9 1 1 . Ballistic Cannon 10 | . 4 14 11 2 11 11 3 9 11 14 Launcher 1 | . . . . 9 11 8 . . . . Naked Turns . | . . . . . . . . . . . Heaviest Build 117 | 13 31 31 91 93 93 95 108 117 113 111 Greatest Support 70 | 40 40 40 60 60 69 69 69 62 60 70 Greatest Overweight (x) 29 | . 1 1 1 1 1 1 2 2 5 29 Average Overweight (x) . | . . . . 1 1 1 1 1 1 1 Largest Inventory Capacity 25 | 8 15 15 25 25 25 25 25 25 25 25 Average Capacity 22 | 7 10 15 23 25 25 25 25 25 25 25 Most Carried 25 | 5 11 15 15 16 15 18 25 25 25 25 Average Carried 19 | . 5 13 14 14 14 15 21 24 24 23 Final Capacity 25 | 8 15 15 25 25 25 25 25 25 25 25 Final Carried 25 | . 11 15 15 14 15 18 24 25 22 23 Class Distribution -------------------- 64% | Hacker-Mutant 20% | Mutant 7% | Hacker-Skirmisher 5% | Scavenger-Mutant Dominant Class ---------------- Mutant | -10/Materials Mutant | -10/Mines Hacker-Mutant | -9/Materials Hacker-Mutant | -9/Mines Hacker-Mutant | -9/Exiles Hacker-Mutant | -8/Mines Hacker-Mutant | -8/Materials Hacker-Mutant | -8/Garrison Hacker-Mutant | -8/Materials Hacker-Mutant | -7/Factory Resources | -11 -10 -10 -9 -9 -9 -8 -8 -8 -8 -7 ----------- Run | Scr Mat Min Mat Min Exi Min Mat Gar Mat Fac Matter Collected 4820 | 275 277 81 14 254 . 133 377 688 1154 1567 Remotely 91 | . . . . . . . . . . 91 Salvage Created 5346 | 119 600 169 63 46 . 149 412 1073 1331 1384 Parts 273 | 5 27 5 5 4 . 15 18 55 64 75 Haulers Intercepted 11 | . 2 . 1 . . . 1 . 6 1 Recyclers Shooed 5 | 1 . . . 1 . . . . . 3 Parts Field Recycled . | . . . . . . . . . . . Retrieved Matter . | . . . . . . . . . . . Parts Self-Destructed . | . . . . . . . . . . . Prevented . | . . . . . . . . . . . Kills | -11 -10 -10 -9 -9 -9 -8 -8 -8 -8 -7 ------- Run | Scr Mat Min Mat Min Exi Min Mat Gar Mat Fac Combat Hostiles Destroyed 142 | . 14 5 . 11 . 10 7 31 25 39 Guns 15 | . 9 . . . . . 1 4 1 . Cannons 108 | . 5 5 . . . 4 5 27 23 39 AOE 18 | . . . . 11 . 6 1 . . . Classes Destroyed 16 | 2 4 . . 1 . 2 1 2 1 3 Worker 8 | . . . . . . 1 . . 5 2 Builder 2 | . . . . . . . . . . 2 Tunneler 2 | 2 . . . . . . . . . . Hauler 11 | . 2 . 1 . . . 1 . 6 1 Recycler 6 | 1 . . . . . 1 . . 2 2 Mechanic 1 | . . . . . . . . 1 . . Operator 2 | . . . . . . . . . 2 . Watcher 17 | . 3 . 1 . . . 2 1 5 5 Swarmer 26 | . 3 . . 4 . 6 . 7 3 3 Grunt 78 | . 11 5 . . . 3 6 17 15 21 Brawler 1 | . . . . . . . . . . 1 Duelist 1 | . . . . . . . . 1 . . Sentry 17 | . . . . . . . 1 6 6 4 Hunter 6 | . . . . . . 1 . . 1 4 Programmer 6 | . . . . . . . . . . 6 Assembled 7 | . . . . 7 . . . . . . Best Kill Streak 6 | 3 5 2 2 4 . 5 3 6 6 6 Combat Bots Only 6 | . 5 2 . 4 . 3 2 6 5 6 Max Kills in Single Turn 2 | 1 1 1 1 2 . 2 1 2 2 2 Gunslinging . | . . . . . . . . . . . Exploded 2 | . . . . 2 . 2 1 . . . Melee . | . . . . . . . . . . . Uniques/NPCs Destroyed . | . . . . . . . . . . . Combat | -11 -10 -10 -9 -9 -9 -8 -8 -8 -8 -7 -------- Run | Scr Mat Min Mat Min Exi Min Mat Gar Mat Fac Damage Taken 8001 | . 708 217 . 958 . 233 347 1494 1049 2995 Core 1318 | . 70 47 . 78 . 48 23 173 177 702 Absorbed by Shields 268 | . . . . . . . . . 24 244 Redirected to Shielding 135 | . 6 4 . 13 . . . 18 13 81 Core Remaining (%) 63 | 100 . 53 . . . 68 . . 32 . Volleys Fired 505 | 5 63 19 6 13 . 16 29 88 123 143 Largest 2 | 2 2 2 2 2 . 2 2 2 2 2 Hottest 135 | 60 100 85 85 68 . 85 105 128 135 96 Shots Fired 921 | 10 105 38 12 17 . 30 57 169 228 255 Gun 187 | 10 74 19 6 . . 4 34 19 21 . Cannon 692 | . 19 19 6 4 . 16 22 150 201 255 Launcher 24 | . . . . 13 . 10 1 . . . Special 18 | . 12 . . . . . . . 6 . Kinetic 664 | 5 50 19 6 4 . 16 37 104 168 255 Thermal 228 | 5 55 19 6 . . 4 14 65 60 . Explosive 24 | . . . . 13 . 10 1 . . . Electromagnetic 5 | . . . . . . . 5 . . . Robot Hit Streak 29 | 9 27 12 8 6 . 21 28 28 19 29 Robot Miss Streak 7 | . 7 2 1 1 . 1 1 3 6 3 Penetration Max 1 | . . . . . . . . 1 . . Secondary Targets . | . . . . . . . . . . . Shots Hit Robots 649 | 9 72 28 8 13 . 22 43 109 164 181 Core Hits 339 | 4 29 11 3 16 . 19 20 50 116 71 Critical Kills 1 | . . . . . . . . . 1 . Critical Parts Destroyed . | . . . . . . . . . . . Critical Strikes 33 | . 4 2 . . . 1 . 6 4 16 Burn 6 | . 4 2 . . . . . . . . Meltdown 1 | . . . . . . . . . 1 . Blast 26 | . . . . . . 1 . 6 3 16 Melee Attacks . | . . . . . . . . . . . Impact . | . . . . . . . . . . . Slashing . | . . . . . . . . . . . Piercing . | . . . . . . . . . . . Sneak Attacks . | . . . . . . . . . . . Combat Hostiles . | . . . . . . . . . . . Follow-up Attacks . | . . . . . . . . . . . Damage Inflicted 15810 | 112 981 426 115 661 . 1200 917 2870 3577 4951 Guns 1939 | 112 706 160 62 . . 37 398 221 243 . Cannons 12091 | . 270 262 53 45 . 212 384 2649 3308 4908 Explosions 1702 | . . . . 616 . 951 135 . . . Melee . | . . . . . . . . . . . Ramming 54 | . 5 4 . . . . . . 2 43 Kinetic 10928 | 56 597 262 53 45 . 212 470 1747 2578 4908 Thermal 3069 | 56 379 160 62 . . 37 255 1123 997 . Explosive 1702 | . . . . 616 . 951 135 . . . Electromagnetic 57 | . . . . . . . 57 . . . Impact . | . . . . . . . . . . . Slashing . | . . . . . . . . . . . Piercing . | . . . . . . . . . . . Highest Corruption 6 | . . . . . . . . . . 6 Average Corruption 4 | . . . . . . . . . . 4 Corruption Purged . | . . . . . . . . . . . Corruption Blocked . | . . . . . . . . . . . Effects 57 | . . . . . . . . . . 57 Message Errors 10 | . . . . . . . . . . 10 Matter Fused 16 | . . . . . . . . . . 16 Heat Flow Errors 5 | . . . . . . . . . . 5 Energy Discharges 5 | . . . . . . . . . . 5 Parts Rejected 1 | . . . . . . . . . . 1 Data Loss (minor) 10 | . . . . . . . . . . 10 Data Loss (major) 1 | . . . . . . . . . . 1 Misfires 3 | . . . . . . . . . . 3 Alerts 1 | . . . . . . . . . . 1 Weapon Failures 5 | . . . . . . . . . . 5 Overload Shots . | . . . . . . . . . . . Overflow Damage 324 | . 3 . . 45 . 52 1 50 66 107 Projectiles 227 | . 3 . . . . . 1 50 66 107 Explosions 97 | . . . . 45 . 52 . . . . Melee . | . . . . . . . . . . . Knockbacks 114 | . 3 4 . 1 . 1 2 11 51 41 Impact . | . . . . . . . . . . . Kinetic 110 | . 3 4 . 1 . 1 2 10 48 41 Secondary 4 | . . . . . . . . 1 3 . Self-Inflicted Damage 199 | . . . . 172 . 27 . . . . Shots 9 | . . . . 7 . 2 . . . . Rammed 4 | . 1 3 . . . . . . . . Targets Rammed 12 | . 1 3 . . . . . . 1 7 Kicked 8 | . . . . . . . . . 1 7 Crushed . | . . . . . . . . . . . Highest Temperature 452 | . 258 291 126 8 . 60 339 452 301 400 Average Temperature 96 | . 60 104 64 4 . 28 120 144 63 106 Received Heat Transfer 3691 | . 351 177 . 20 . 63 297 837 632 1314 Effects 15 | . 1 1 . . . . . 6 1 6 Shutdowns 2 | . . . . . . . . 1 . 1 Energy Bleed 2 | . . 1 . . . . . 1 . . Interference 6 | . 1 . . . . . . 2 . 3 Matter Decay 1 | . . . . . . . . 1 . . Short Circuit 2 | . . . . . . . . . 1 1 Damage (minor) 2 | . . . . . . . . 1 . 1 Siege Activations . | . . . . . . . . . . . Robots Corrupted . | . . . . . . . . . . . Combat Hostiles . | . . . . . . . . . . . Parts Fried 2 | . . . . . . . 2 . . . Impact Corruptions . | . . . . . . . . . . . Robots Melted 1 | . . . . . . . . . 1 . Combat Hostiles 1 | . . . . . . . . . 1 . Parts Melted 9 | . 4 . 1 . . . . 1 . 3 Heat Transferred 7082 | 125 1407 629 185 . . 111 500 2175 1950 . Parts Sabotaged . | . . . . . . . . . . . Parts Stolen . | . . . . . . . . . . . Parts Stripped . | . . . . . . . . . . . Power Chain Reactions . | . . . . . . . . . . . Missiles Intercepted . | . . . . . . . . . . . Alert | -11 -10 -10 -9 -9 -9 -8 -8 -8 -8 -7 ------- Run | Scr Mat Min Mat Min Exi Min Mat Gar Mat Fac Peak Influence 1215 | 15 319 115 50 266 . 187 222 1215 510 203 Initial 510 | . 8 44 14 16 . . 61 126 510 25 Average 190 | 6 106 49 28 83 . 123 110 698 232 66 Maximum Alert Level 4 | . 1 . . 1 . . 1 4 2 1 Low Security (%) 70 | 100 84 100 100 85 . 100 86 7 35 99 Level 1 16 | . 15 . . 14 . . 13 15 49 . Level 2 6 | . . . . . . . . 26 14 . Level 3 4 | . . . . . . . . 33 . . Level 4 2 | . . . . . . . . 17 . . Level 5 . | . . . . . . . . . . . High Security . | . . . . . . . . . . . Max Security . | . . . . . . . . . . . Squads Dispatched 34 | . 4 1 . . . . 1 1 7 20 Investigation 16 | . 4 1 . . . . . . 3 8 Extermination 5 | . . . . . . . . . . 5 Reinforcement 3 | . . . . . . . 1 . 1 1 Assault 1 | . . . . . . . . 1 . . Garrison 9 | . . . . . . . . . 3 6 Intercept . | . . . . . . . . . . . Searches Triggered . | . . . . . . . . . . . Construction Impeded . | . . . . . . . . . . . Haulers Reinforced 1 | . . . . . . . . . . 1 Active Scanning Responses . | . . . . . . . . . . . Cargo Convoy Interrupts . | . . . . . . . . . . . Stealth | -11 -10 -10 -9 -9 -9 -8 -8 -8 -8 -7 --------- Run | Scr Mat Min Mat Min Exi Min Mat Gar Mat Fac Distress Signals 11 | . 2 . . . . . 2 . 4 3 Communications Jammed . | . . . . . . . . . . . Distress Signals . | . . . . . . . . . . . Times Spotted 205 | . 21 5 3 22 . 6 16 37 40 55 Peak Tracking Total 11 | . 6 2 3 11 . 3 6 9 7 5 Tactical Retreats 10 | . . 1 . 1 . . 1 2 3 2 Traps | -11 -10 -10 -9 -9 -9 -8 -8 -8 -8 -7 ------- Run | Scr Mat Min Mat Min Exi Min Mat Gar Mat Fac Traps Triggered 14 | . 2 . 1 . . . . 8 . 3 Indirectly . | . . . . . . . . . . . Trap Hack Attempts . | . . . . . . . . . . . Triggered . | . . . . . . . . . . . Disarmed 3 | . . . . . . . . . 3 . Reprogrammed 8 | . 4 . . . . . . . 4 . Reused 3 | . . . . . . . . . 3 . Traps Extracted . | . . . . . . . . . . . Installed . | . . . . . . . . . . . Triggered 3 | . . . . . . . . . 3 . Machines | -11 -10 -10 -9 -9 -9 -8 -8 -8 -8 -7 ---------- Run | Scr Mat Min Mat Min Exi Min Mat Gar Mat Fac Machines Disabled 8 | . 1 . . . . 1 . 4 . 2 Max in Single Turn 1 | . 1 . . . . 1 . 1 . 1 Garrison Access 1 | . . . . . . . . . 1 . Garrison Relay 3 | . . . . . . . . 3 . . Machines Sabotaged . | . . . . . . . . . . . Garrisons Compromised . | . . . . . . . . . . . Overloaded Fab Kills . | . . . . . . . . . . . Hacking | -11 -10 -10 -9 -9 -9 -8 -8 -8 -8 -7 --------- Run | Scr Mat Min Mat Min Exi Min Mat Gar Mat Fac Machines Accessed 36 | . 9 1 2 . 1 . 2 . 11 10 Terminals 20 | . 7 . 1 . . . . . 7 5 Fabricators . | . . . . . . . . . . . Repair Stations . | . . . . . . . . . . . Recycling Units 8 | . 2 . 1 . . . 1 . 2 2 Scanalyzers 2 | . . . . . . . . . 1 1 Garrison Access 4 | . . . . . . . 1 . 1 2 Total Hacks 150 | . 34 1 7 . 1 . 5 . 69 33 Successful 108 | . 21 1 5 . 1 . 3 . 60 17 Failed 42 | . 13 . 2 . . . 2 . 9 16 Catastrophic 8 | . 1 . . . . . . . 2 5 Database Lockouts . | . . . . . . . . . . . Manual 46 | . 13 . 3 . 1 . 2 . 16 11 Terminals 80 | . 28 . 4 . . . . . 36 12 Fabricators . | . . . . . . . . . . . Repair Stations . | . . . . . . . . . . . Recycling Units 27 | . 6 . 3 . . . 1 . 6 11 Scanalyzers 30 | . . . . . . . . . 26 4 Garrison Access 11 | . . . . . . . 4 . 1 6 Terminal Hacks 36 | . 10 1 2 . 1 . . . 18 4 Record 11 | . 3 . 1 . . . . . 7 . Open Door 1 | . . 1 . . . . . . . . Open DSF 2 | . . . . . . . . . . 2 Level Access Points 1 | . . . . . . . . . . 1 Branch Access Points 4 | . 1 . 1 . . . . . 1 1 Emergency Access Points 1 | . . . . . . . . . 1 . Unreport Threat 1 | . . . . . . . . . 1 . Locate Traps 2 | . 1 . . . . . . . 1 . Disarm Traps 2 | . . . . . . . . . 2 . Reprogram Traps 3 | . 1 . . . . . . . 2 . Transport Status 1 | . . . . . . . . . 1 . Recall Reinforcements 1 | . 1 . . . . . . . . . Registered Prototypes 1 | . . . . . . . . . 1 . Zone Layout 4 | . 3 . . . . . . . 1 . EX-Prototype ID Bank 1 | . . . . . 1 . . . . . Fabricator Hacks . | . . . . . . . . . . . Repair Station Hacks . | . . . . . . . . . . . Recycling Unit Hacks 15 | . 5 . 2 . . . 1 . 3 4 Report Inventory 10 | . 4 . 1 . . . 1 . 2 2 Retrieve Matter 1 | . . . . . . . . . . 1 Retrieve Components 4 | . 1 . 1 . . . . . 1 1 Scanalyzer 30 | . . . . . . . . . 26 4 Insert Component 13 | . . . . . . . . . 11 2 Analyze 17 | . . . . . . . . . 15 2 Garrison Access Hacks 4 | . . . . . . . 1 . 1 2 Unlock Access 1 | . . . . . . . 1 . . . Seal Access 1 | . . . . . . . . . 1 . Coupler Status 2 | . . . . . . . . . . 2 Unauthorized Hacks 23 | . 6 . 1 . . . 1 . 12 3 Terminals 19 | . 6 . 1 . . . . . 10 2 Track 1 | . . . . . . . . . 1 . Assimilate 3 | . . . . . . . . . 3 . Botnet 14 | . 6 . 1 . . . . . 6 1 Operators 1 | . . . . . . . . . . 1 Fabricators . | . . . . . . . . . . . Repair Stations . | . . . . . . . . . . . Recycling Units 2 | . . . . . . . . . 2 . Reject 1 | . . . . . . . . . 1 . Mask 1 | . . . . . . . . . 1 . Scanalyzers . | . . . . . . . . . . . Garrison Access 2 | . . . . . . . 1 . . 1 Reprogram 2 | . . . . . . . 1 . . 1 Data Cores Recovered 1 | . . . . . . . . . 1 . Used . | . . . . . . . . . . . Hacking Detections 25 | . 7 . 1 . . . 1 . 8 8 Full Trace Events 11 | . 2 . . . . . . . 3 6 Feedback Events 1 | . . . . . . . . . . 1 Corruption 1 | . . . . . . . . . . 1 Feedback Blocked . | . . . . . . . . . . . Robot Schematics Acquired . | . . . . . . . . . . . Robots Built . | . . . . . . . . . . . Authchips . | . . . . . . . . . . . Time . | . . . . . . . . . . . Total Robot Build Rating . | . . . . . . . . . . . Part Schematics Acquired 12 | . . . . . . . . . 11 1 Parts Built . | . . . . . . . . . . . Authchips . | . . . . . . . . . . . Time . | . . . . . . . . . . . Total Part Build Rating . | . . . . . . . . . . . Parts Repaired . | . . . . . . . . . . . Time . | . . . . . . . . . . . Parts Recycled . | . . . . . . . . . . . Recycled Matter . | . . . . . . . . . . . Retrieved Matter 200 | . . . . . . . . . . 200 Retrieved Components 33 | . 10 . 3 . . . . . 10 10 Parts Scanalyzed 13 | . . . . . . . . . 11 2 Part Schematics Acquired 12 | . . . . . . . . . 11 1 Parts Damaged 1 | . . . . . . . . . . 1 Bothacking | -11 -10 -10 -9 -9 -9 -8 -8 -8 -8 -7 ------------ Run | Scr Mat Min Mat Min Exi Min Mat Gar Mat Fac Used RIF Installer 1 | . . . . . . . . 1 . . Robots Hacked . | . . . . . . . . . . . Non-combat . | . . . . . . . . . . . Combat . | . . . . . . . . . . . Robot Hacks Applied . | . . . . . . . . . . . Relay Couplers Released 13 | . . . . . . . . 10 . 3 Machine Destruction 10 | . . . . . . . . 10 . . Programmers 3 | . . . . . . . . . . 3 Fabnet Peak Effective % . | . . . . . . . . . . . Robots Rewired . | . . . . . . . . . . . Allies Hacked . | . . . . . . . . . . . Hacks Repelled . | . . . . . . . . . . . Allies | -11 -10 -10 -9 -9 -9 -8 -8 -8 -8 -7 -------- Run | Scr Mat Min Mat Min Exi Min Mat Gar Mat Fac Total Allies 3 | . . . . . . . . . . 3 Largest Group 3 | . . . . . . . . . . 3 Highest-Rated Group 48 | . . . . . . . . . . 48 Highest-Rated Ally 16 | . . . . . . . . . . 16 Total Orders . | . . . . . . . . . . . Ally Attacks 13 | . . . . . . . . . . 13 Total Damage 193 | . . . . . . . . . . 193 Kills 1 | . . . . . . . . . . 1 Allies Corrupted . | . . . . . . . . . . . Allies Melted . | . . . . . . . . . . . Intel | -11 -10 -10 -9 -9 -9 -8 -8 -8 -8 -7 ------- Run | Scr Mat Min Mat Min Exi Min Mat Gar Mat Fac Robot Analysis Total . | . . . . . . . . . . . Derelict Logs Recovered 1 | . . 1 . . . . . . . . Drone Launches . | . . . . . . . . . . . Drone Recoveries . | . . . . . . . . . . . Exploration | -11 -10 -10 -9 -9 -9 -8 -8 -8 -8 -7 ------------- Run | Scr Mat Min Mat Min Exi Min Mat Gar Mat Fac Turns Passed 14681 | 65 1592 1148 283 1080 906 762 768 1690 3108 3279 Spaces Moved 5734 | 38 815 590 109 419 360 275 248 574 1140 1166 Core 22 | 19 . . . . . . . . . 3 Treads 3622 | 19 815 590 109 419 360 275 248 574 213 . Legs 2090 | . . . . . . . . . 927 1163 Wheels . | . . . . . . . . . . . Hover . | . . . . . . . . . . . Flight . | . . . . . . . . . . . Fastest Speed 50 | 50 160 160 160 250 250 250 246 235 200 195 Average Speed 216 | 105 165 176 231 250 250 250 249 237 207 236 Slowest Speed 1500 | 160 240 240 250 250 250 250 330 317 480 1500 Overloaded Moves . | . . . . . . . . . . . Propulsion Burnouts . | . . . . . . . . . . . Robots Hopped . | . . . . . . . . . . . Cave-ins Triggered 1 | . . . . . . . . . . 1 Exploration Rate (%) 57 | 3 97 96 15 86 81 62 19 74 70 28 Regions Visited 10 Branch Regions 4 Pre-discovered Areas 1 | . . 1 . . . . . . . . Known Exits Taken 3 | . 1 . 1 . . . 1 . . . Unknown Exits Taken 6 | 1 . 1 . 1 1 1 . . 1 . Scrap Searched 4 | . . 1 . 1 . 2 . . . . Spaces Dug 33 | . 12 . . 9 . . . . 7 5 Terrain Destroyed 234 | . 12 . . 104 . 49 10 . 30 29 Melee . | . . . . . . . . . . . Projectile 74 | . 12 . . . . . 3 . 30 29 AOE 160 | . . . . 104 . 49 7 . . . Terrain Rammed . | . . . . . . . . . . . Walls Destroyed . | . . . . . . . . . . . Machines Disabled . | . . . . . . . . . . . Actions | -11 -10 -10 -9 -9 -9 -8 -8 -8 -8 -7 --------- Run | Scr Mat Min Mat Min Exi Min Mat Gar Mat Fac Total 7035 | 53 926 659 129 436 367 319 344 742 1642 1418 Wait 473 | . 12 41 . . . 20 41 22 300 37 Move 5723 | 37 814 589 108 418 359 274 247 572 1139 1166 Hop . | . . . . . . . . . . . Pick Up 116 | 5 19 5 4 2 2 4 12 19 21 23 Fast Attach 10 | 1 . . 1 . . . . . 3 5 Attach 56 | 5 4 1 2 3 1 1 5 8 8 18 Detach 3 | . . . 1 . 1 . . . . 1 Swap 66 | . 8 1 3 . 3 4 6 6 24 11 Drop 55 | . 5 . 4 . 1 . 4 11 23 7 Fire 505 | 5 63 19 6 13 . 16 29 88 123 143 Melee . | . . . . . . . . . . . Ram . | . . . . . . . . . . . Kick 8 | . . . . . . . . . 1 7 Crush 4 | . 1 3 . . . . . . . . Escape Stasis 16 | . . . . . . . . 16 . . Rewire . | . . . . . . . . . . . Trap . | . . . . . . . . . . . Miscellaneous . | . . . . . . . . . . . Route ------- -11/Scrapyard -10/Materials (discovered 5 exits: *Mat x3 / *Min x2) -10/Mines (discovered 2 exits: *Mat x2) -9/Materials (discovered 2 exits: *Min x2) -9/Mines (discovered 3 exits: *Mat x2 / *Exi) -9/Exiles -8/Mines -8/Materials -8/Garrison (discovered 3 exits: *Mat x3) -8/Materials (discovered 2 exits: *Fac x2) -7/Factory (discovered 7 exits: Fac x4 / *Sto / Low x2) History --------- Turn | Location | Event 10 | -11/Scrapyard | Discovered new exit (range 15) 66 | -11/Scrapyard | Entered Materials 333 | -10/Materials | Build established: Mutant 512 | -10/Materials | Discovered new exit (range 15) 531 | -10/Materials | Identified exit to Mines 725 | -10/Materials | Discovered new exit (range 6) 802 | -10/Materials | Discovered new exit (range 16) 1275 | -10/Materials | Discovered new exit (range 15) 1658 | -10/Materials | Entered Mines 1969 | -10/Mines | Found a hidden stash of uninstalled traps 1987 | -10/Mines | Learned location of Zion (-6) 2125 | -10/Mines | Met a Derelict shopkeep closing up shop 2244 | -10/Mines | Found a damaged Exp. Sensor Array with a note attached 2252 | -10/Mines | Found Prototype Device 2707 | -10/Mines | Discovered new exit (range 4) 2757 | -10/Mines | Discovered new exit (range 15) 2770 | -10/Mines | Met a Derelict testing a Signal Generator 2804 | -10/Mines | Found Signal Generator 2806 | -10/Mines | Entered Materials 2806 | -9/Materials | Evolved 2 slots: Propulsion x1, Utility x1 2816 | -9/Materials | Identified Exp. Sensor Array 2991 | -9/Materials | Discovered new exit (range 15) 3059 | -9/Materials | Identified exit to Mines 3089 | -9/Materials | Entered Mines 3141 | -9/Mines | Build established: Hacker-Mutant 3193 | -9/Mines | Assembled infested the area 3614 | -9/Mines | Discovered new exit (range 8) 4079 | -9/Mines | Discovered new exit (range 9) 4159 | -9/Mines | Deemed a non-threat by the Exiles lab entrance 4159 | -9/Mines | Discovered new exit (range 5) 4169 | -9/Mines | Entered Exiles 4232 | -9/Exiles | Met 8R-AWN 4272 | -9/Exiles | Met EX-HEX 4342 | -9/Exiles | Met EX-BIN 4377 | -9/Exiles | Aligned with FarCom system 4379 | -9/Exiles | Given EX-Vault access code 4442 | -9/Exiles | Opened EX-Vault 4463 | -9/Exiles | Found Cloak of Protection 4519 | -9/Exiles | Warned to stay clear of 0b10 Research branches 4672 | -9/Exiles | Met EX-DEC 4728 | -9/Exiles | Visited The Gauntlet 5048 | -9/Exiles | Discovered new exit (range 14) 5075 | -9/Exiles | Left Exiles lab with Cloak of Protection 5075 | -9/Exiles | Entered Mines 5797 | -8/Mines | Discovered new exit (range 7) 5837 | -8/Mines | Entered Materials 5837 | -8/Materials | Evolved 2 slots: Power x1, Utility x1 6597 | -8/Materials | Identified exit to Garrison 6605 | -8/Materials | Entered Garrison 6802 | -8/Garrison | Lost 5 parts (1p2n1u1w) 6912 | -8/Garrison | Triggered checkpoint 6948 | -8/Garrison | Triggered checkpoint 7065 | -8/Garrison | Discovered new exit (range 10) 7162 | -8/Garrison | Triggered checkpoint 7216 | -8/Garrison | Garrison Relay disabled 7318 | -8/Garrison | Triggered checkpoint 7404 | -8/Garrison | Triggered checkpoint 7463 | -8/Garrison | Triggered checkpoint 7504 | -8/Garrison | Garrison Relay disabled 7747 | -8/Garrison | Discovered new exit (range 12) 7868 | -8/Garrison | Triggered checkpoint 8102 | -8/Garrison | Triggered checkpoint 8129 | -8/Garrison | Garrison Relay disabled 8245 | -8/Garrison | Discovered new exit (range 12) 8283 | -8/Garrison | Installed Relay Interface Framework 8295 | -8/Garrison | Entered Materials 8301 | -8/Materials | Build established: Scavenger-Mutant 8824 | -8/Materials | Discovered new exit (range 16) 9247 | -8/Materials | Build established: Hacker-Mutant 9538 | -8/Materials | Garrison activated, responded to threat 10172 | -8/Materials | Core integrity fell below 50% 10617 | -8/Materials | Build established: Hacker-Skirmisher 11369 | -8/Materials | Discovered new exit (range 16) 11403 | -8/Materials | Entered Factory 11403 | -7/Factory | Evolved 2 slots: Propulsion x1, Utility x1 11553 | -7/Factory | Build established: Hacker-Mutant 11609 | -7/Factory | Garrison activated, responded to threat 12112 | -7/Factory | Identified exit to Factory 12964 | -7/Factory | Crushed by falling debris 12999 | -7/Factory | Lost 4 parts (1p1n2u) 13120 | -7/Factory | Discovered new exit (range 16) 13421 | -7/Factory | Garrison activated, responded to threat 13479 | -7/Factory | Lost 5 parts (1p2n1u1w) 14350 | -7/Factory | Identified exit to Storage 14350 | -7/Factory | Identified exit to Lower Caves 14414 | -7/Factory | Core integrity fell below 50% 14632 | -7/Factory | Lost 7 parts (3p3n1u) 14665 | -7/Factory | Core integrity fell below 20% 14682 | -7/Factory | Destroyed by G-47 Trooper with Particle Gun Last Messages --------------- 14605_ U-05 Engineer lays Concrete. 14607_ K-01 Serf collects debris. 14607_ U-05 Engineer builds a Wall. 14608_ K-01 Serf collects debris. 14620_ Detecting nearby Garrison Access. 14623_ K-01 Serf collects debris. 14627_ Acquired 10 matter. 14630_ K-01 Serf collects debris. 14630_ R-06 Scavenger collects Med. Matter Pod. 14635_ A-02 Transporter calls for reinforcements. 14635_ ALERT: Hostile activity reported, dispatching reinforcements to area. 14636_ System corrupted: Component data lost. 14644_ R-06 Scavenger collects Imp. Heat Sink. 14652_ System corrupted: Matter fused (-6). 14656_ Aluminum Leg destroyed. 14666_ Critical hit (Burn: +37). 14667_ System corrupted: Component data lost. 14672_ Acquired 2 matter. 14675_ Critical hit (Burn: +37). 14678_ Adv. Targeting Computer destroyed. Map ----- +----------------------------------------------------+ | ?????????????????????????????????????????????????? | | ?????????????????????????????????????????????????? | | ?????????????????????????????????????????????????? | | ?????????????????????????????????????????????????? | | ?????????????????????????????????????????????????? | | ?????????????????????????????????????????????????? | | ?????????????????????????????????????????????????? | | ?????????????????????????????????????????????????? | | ##############???????????????????????????????????? | | ! #???????????????????????????????????? | | #???????????????????????????????????? | | """ """ """ #???????????????????????????????????? | | """ """ """ #?????????????????? ????????????????? | | """ """ """ #????#???????????? ??????????????? | | #??? "???" ?????? ????????????? | | ########+#####??? """"" ????? ] ????????????? | | ###### #????# """ ?????? ???????????? | | " # #????# ??????r ???????????? | | # #????# ??????? ????????????? | | # #????? ??????? ????????????? | | / *##????= ??????? ??????????????? | | "" # # #### ????? #????????????????? | | "" # ##########+##### #????????????????? | | """ # k g #????????????????? | | """ # %g #????????????????? | | """ / k @ g #????????????????? | | # % #????????????????? | | # #????????????????? | | # #################+####????????????????? | | +##### ## ####??????????? ??????????????????? | | ####??????????????? ????????????????? | | #???????????????????? ???????????????? | | #????????????????????? ??????????????? | | #?????????????????????????????????????? | | #?????????????????????????????????????? | | ############?????????????????????????????????????? | | ?????????? ????????????????????????????????????? ? | | ?????????? ????????????????????????????????????# ? | | ?????????? ????????????????????????????????????# # | | ???????????????????????????????????????????????# # | | ???????????????????????????????????????????????+ | | ???????????????????????????????????????????????# | | ??????????????????????########################## | | ?????????????????????? | | ?????????############### | | ?????????# # | | ###??????# """" """ # | | #?????# """" "Y" # | | #?????# """" "]"!# | | "" #?????#] """" * == *# | +----------------------------------------------------+ Best States ------------- Heat Dissipation 50 Energy Generation 27 Energy Capacity 380 Matter Stores 300 Matter Capacity 300 Sight Range 16 Robot Scan Range 20 Terrain Scan Density 10 Cloak Strength 5 Additional Mass Support 9 Armor Coverage 150 Resistance: KI 20 Resistance: TH 20 Resistance: EX 20 Resistance: EM 20 Resistance: I 20 Resistance: S 20 Resistance: P 20 Core Shielding 20 Power Shielding 66 Utility Shielding 66 Evasion (%) 40 Targeting Accuracy 16 Recoil Reduction 3 Offensive Hacking 10 Defensive Hacking 10 Item Schematics ----------------- Core Shielding | -8/Materials | Scanalyzed System Shield | -8/Materials | Scanalyzed Shock Absorption System | -8/Materials | Scanalyzed ECM Suite | -8/Materials | Scanalyzed Hardlight Generator | -8/Materials | Scanalyzed Imp. Power Shielding | -8/Materials | Scanalyzed Power Shielding | -8/Materials | Scanalyzed Reactive Plating | -8/Materials | Scanalyzed Adv. Targeting Computer | -8/Materials | Scanalyzed Transmission Jammer | -8/Materials | Scanalyzed Imp. Utility Shielding | -8/Materials | Scanalyzed Exp. Sensor Array | -7/Factory | Scanalyzed Robot Schematics ------------------ None Fabricated ------------ Nothing Alien Tech Used ----------------- None Achievements -------------- None Challenges ------------ None Game ------ Seed TrackerLayeredCharger Manual? 0 Play Time 02:40:45 Cumulative 95.0 hours Start 2022.12.11 @ 20:33:35 End 2022.12.15 @ 19:43:51 Sessions 5 Manual Loads 0 Difficulty Adventurer Special Mode None Game No. 97 Rogue 0 Adventurer 97 Explorer 0 Win Type - Total 0 Types 0/0/0/0/0/0/0/0/0 Lore% 38 Gallery% 50 Achievement% 35 Wizard Run 0 Options --------- ASCII 0 Keyboard 0 Movement Mouse Keybinds 0 Fullscreen 1 Font 16/SmallcapsGlow Map View 113x50 Tactical HUD 1 Map Filters NONE Filters NONE Steam 1 RUN: a5ee4de6-c4c2-4316-9bfb-42f049b76eed